{"text_format":"3","workbook":"xlsx","n_sheets":2,"sheets":["Pradžia","Paslaugų sąskaita faktūra"],"not_rendered":{"images":1,"defined_names":1},"read":"whole","date_system":"1900"}

{"sheet":"Pradžia","index":0,"n_rows":8,"n_cols":2,"rows_kept":8}
[null,"APIE ŠĮ ŠABLONĄ"]
[null,"Naudokite šį šabloną norėdami sukurti paslaugų sąskaita faktūra."]
[null,"Įveskite sąskaitos faktūros numerį, data, įmonės pavadinimas, adresas, šūkį ir sąskaitos išrašymo informaciją."]
[null,"Įveskite informaciją lentelėse."]
[null,"Bendra suma apskaičiuojama automatiškai."]
[null,"Pastaba. "]
[null,"Papildomos instrukcijos pateikiamos darbalapio PASLAUGŲ SĄSKAITA FAKTŪRA a stulpelyje. Šis tekstas buvo specialiai paslėptas. Norėdami pašalinti tekstą, pasirinkite A stulpelį, tada pasirinkite Naikinti. Norėdami nebeslėpti teksto, pasirinkite A stulpelį, tada pakeiskite šrifto spalvą."]
[null,"Norėdami sužinoti daugiau apie lenteles, lentelėje paspauskite SHIFT, tada – F10, pasirinkite parinktį LENTELĖ, tada pasirinkite ALTERNATYVUS TEKSTAS."]

{"sheet":"Paslaugų sąskaita faktūra","index":1,"n_rows":43,"n_cols":5,"rows_kept":43,"merged":[[0,1,0,2],[0,3,0,4],[1,1,1,4],[2,1,2,3],[3,1,3,3],[4,1,4,2],[5,1,5,2],[6,1,6,2],[7,1,7,2],[41,1,41,2],[41,3,41,4],[42,1,42,4]]}
["Šiame darbalapyje sukurkite Paslaugų sąskaita faktūra. Langelyje dešinėje įveskite įmonės logotipą, o D1 langelyje įveskite darbalapio pavadinimą. Naudingi patarimai, kaip naudoti šį darbalapį, pateikti šio stulpelio langeliuose. Kitas nurodymas yra langelyje A3.","Šiame langelyje yra logotipo vietos rezervavimo ženklas.",null,"SĄSKAITA FAKTŪRA"]
[]
["Langelyje dešinėje įveskite įmonės pavadinimą.","Jūsų įmonės pavadinimas"]
["Langelyje dešinėje įveskite įmonės šūkį.","Jūsų įmonės šūkis"]
["Langelyje dešinėje įveskite adresą, o langelyje E5 įveskite sąskaitos faktūros numerį.","Adresas",null,"SĄSKAITA FAKTŪRA NR.","Nr."]
["Langelyje dešinėje įveskite miestą, valstybę ir pašto kodą, o langelyje E6 įveskite data.","Miestas, pašto kodas",null,"DATA ",{"$f":"TODAY()","v":"2019-04-18"}]
["Langelyje dešinėje įveskite telefono ir fakso numerius, o E7 langelyje įveskite ID.","Telefonas, faksas",null,"KLIENTO ID ","ID"]
["Langelyje dešinėje įveskite el. pašto adresą.","El. paštas"]
["Kam žyma yra dešinėje esančiame langelyje. Įveskite sąskaitos išrašymo informaciją, pvz., Vardas, pavardė, įmonės pavadinimas, adresas ir telefono numerį langeliuose nuo C9 iki C13. Kitas nurodymas yra A14 langelyje.","KAM","Vardas, pavardė"]
[null,null,"Įmonės pavadinimas"]
[null,null,"Adresas"]
[null,null,"Miestas, pašto kodas"]
[null,null,"Telefonas"]
["Įveskite informaciją Išsami Pardavimo informacija nuo langelio dešinėje. Kitas nurodymas yra A17 langelyje.","PARDAVĖJAS","PAREIGOS","MOKĖJIMO SĄLYGOS","TERMINAS"]
[{"$nulls":3},"Apmokėti gavus"]
[]
["Įveskite informaciją lentelėje Sąskaita faktūra nuo langelio dešinėje. Tarpinė suma ir suma suskaičiuojama automatiškai. Kitas nurodymas yra A42 langelyje.","KIEKIS","APRAŠAS","VIENETO KAINA","BENDRA EILUTĖS SUMA"]
[{"$nulls":4},{"$f":"IF(SUM(B18)>0,SUM(B18*'Paslaugų sąskaita faktūra'!$D18),\"\")","v":""}]
[{"$nulls":4},{"$f":"IF(SUM(B19)>0,SUM(B19*'Paslaugų sąskaita faktūra'!$D19),\"\")","v":""}]
[{"$nulls":4},{"$f":"IF(SUM(B20)>0,SUM(B20*'Paslaugų sąskaita faktūra'!$D20),\"\")","v":""}]
[{"$nulls":4},{"$f":"IF(SUM(B21)>0,SUM(B21*'Paslaugų sąskaita faktūra'!$D21),\"\")","v":""}]
[{"$nulls":4},{"$f":"IF(SUM(B22)>0,SUM(B22*'Paslaugų sąskaita faktūra'!$D22),\"\")","v":""}]
[{"$nulls":4},{"$f":"IF(SUM(B23)>0,SUM(B23*'Paslaugų sąskaita faktūra'!$D23),\"\")","v":""}]
[{"$nulls":4},{"$f":"IF(SUM(B24)>0,SUM(B24*'Paslaugų sąskaita faktūra'!$D24),\"\")","v":""}]
[{"$nulls":4},{"$f":"IF(SUM(B25)>0,SUM(B25*'Paslaugų sąskaita faktūra'!$D25),\"\")","v":""}]
[{"$nulls":4},{"$f":"IF(SUM(B26)>0,SUM(B26*'Paslaugų sąskaita faktūra'!$D26),\"\")","v":""}]
[{"$nulls":4},{"$f":"IF(SUM(B27)>0,SUM(B27*'Paslaugų sąskaita faktūra'!$D27),\"\")","v":""}]
[{"$nulls":4},{"$f":"IF(SUM(B28)>0,SUM(B28*'Paslaugų sąskaita faktūra'!$D28),\"\")","v":""}]
[{"$nulls":4},{"$f":"IF(SUM(B29)>0,SUM(B29*'Paslaugų sąskaita faktūra'!$D29),\"\")","v":""}]
[{"$nulls":4},{"$f":"IF(SUM(B30)>0,SUM(B30*'Paslaugų sąskaita faktūra'!$D30),\"\")","v":""}]
[{"$nulls":4},{"$f":"IF(SUM(B31)>0,SUM(B31*'Paslaugų sąskaita faktūra'!$D31),\"\")","v":""}]
[{"$nulls":4},{"$f":"IF(SUM(B32)>0,SUM(B32*'Paslaugų sąskaita faktūra'!$D32),\"\")","v":""}]
[{"$nulls":4},{"$f":"IF(SUM(B33)>0,SUM(B33*'Paslaugų sąskaita faktūra'!$D33),\"\")","v":""}]
[{"$nulls":4},{"$f":"IF(SUM(B34)>0,SUM(B34*'Paslaugų sąskaita faktūra'!$D34),\"\")","v":""}]
[{"$nulls":4},{"$f":"IF(SUM(B35)>0,SUM(B35*'Paslaugų sąskaita faktūra'!$D35),\"\")","v":""}]
[{"$nulls":4},{"$f":"IF(SUM(B36)>0,SUM(B36*'Paslaugų sąskaita faktūra'!$D36),\"\")","v":""}]
[{"$nulls":4},{"$f":"IF(SUM(B37)>0,SUM(B37*'Paslaugų sąskaita faktūra'!$D37),\"\")","v":""}]
[{"$nulls":3},"TARPINĖ SUMA",{"$f":"IF(SUM(E18:E37)>0,SUM(E18:E37),\"\")","v":""}]
[{"$nulls":3},"PARDAVIMO MOKESTIS"]
[{"$nulls":3},"SUMA",{"$f":"IF(SUM(E38)>0,SUM((E38*E39)+E38),\"\")","v":""}]
[]
["Įmonės pavadinimas automatiškai atnaujinamas langelyje D42.","Visų mokėjimų gavėjas yra",null,{"$f":"B3","v":"Jūsų įmonės pavadinimas"}]
["Padėkos pranešimas yra langelyje dešinėje.","DĖKOJAME JUMS!"]